bitfinex/quotes_SOLUSD_20240711
["timestamp","ask_amount","ask_price","bid_price","bid_amount"]
[1720725664828,14.04,138.39,138.35,45.0]
[1720725665327,14.04,138.38,138.35,45.0]
[1720725665524,14.04,138.37,138.35,45.0]
[1720725665841,6.6103,138.41,138.31,6.0151]
[1720725666044,14.04,138.35,138.31,6.0151]
[1720725666512,14.04,138.35,138.29,16.0165]
[1720725666513,14.04,138.33,138.29,16.0165]
[1720725667014,14.04,138.34,138.29,30.0565]
[1720725667611,15.0951,138.38,138.29,16.0165]
[1720725667807,14.04,138.31,138.24,22.3654]
[1720725668213,6.5532,138.36,138.24,22.3654]
[1720725668433,14.04,138.3,138.25,14.04]
[1720725668639,14.04,138.3,138.24,22.3654]
[1720725668934,14.04,138.29,138.21,15.6036]
[1720725669125,15.7209,138.32,138.21,15.6036]
[1720725669126,29.7609,138.32,138.21,15.6036]
[1720725669321,14.04,138.27,138.22,14.04]
[1720725669931,0.17,138.31,138.23,14.04]
[1720725670130,14.04,138.28,138.23,14.04]
[1720725670643,14.04,138.26,138.21,29.6436]
[1720725670821,14.04,138.27,138.22,14.04]
[1720725671336,14.04,138.28,138.22,14.04]
[1720725672621,0.17,138.31,138.23,45.0]
[1720725672821,20.34,138.31,138.22,45.0]
[1720725673320,20.17,138.31,138.22,45.0]
[1720725673922,43.9309,138.32,138.23,0.17]
[1720725674122,7.53214185,138.35,138.23,0.17]
[1720725674324,38.64380416,138.35,138.23,0.34]
[1720725675746,0.17,138.34,138.23,0.34]
[1720725676325,38.64380416,138.35,138.23,0.34]
[1720725676524,20.0,138.34,138.23,0.34]
[1720725677140,0.17,138.33,138.23,0.34]
[1720725677536,28.55,138.33,138.23,0.17]
[1720725677842,28.55,138.33,138.21,15.6036]
[1720725677843,20.0,138.32,138.21,15.6036]
[1720725678044,0.17,138.31,138.21,15.6036]
[1720725678251,28.38,138.31,138.21,15.6036]
[1720725678426,20.0,138.3,138.21,15.6036]
[1720725678626,19.88,138.3,138.21,15.6036]
[1720725679025,7.53171143,138.29,138.22,45.0]
[1720725679627,7.53171143,138.29,138.21,15.6036]
[1720725680229,13.59181143,138.29,138.2,6.2633]
[1720725680947,13.59181143,138.29,138.21,45.0]
[1720725681348,7.53171143,138.29,138.21,45.0]
[1720725681526,7.53171143,138.29,138.22,0.17]
[1720725683150,16.5355,138.3,138.22,0.34]
[1720725683350,13.59522415,138.32,138.22,0.34]
[1720725683552,20.0,138.31,138.22,0.34]
[1720725686232,7.53512415,138.32,138.22,0.34]
[1720725687844,20.0,138.31,138.22,0.34]
[1720725688050,6.3639,138.3,138.22,0.34]
[1720725688252,6.3639,138.3,138.22,0.17]
[1720725689059,20.0,138.31,138.23,15.4584]
[1720725689355,7.53512415,138.32,138.24,45.17]
[1720725689546,16.4384,138.33,138.25,0.17]
[1720725690756,16.4384,138.33,138.24,45.17]
[1720725692855,7.70699893,138.34,138.25,6.4184]
[1720725693057,7.70699893,138.34,138.26,45.0]
[1720725693058,20.0,138.33,138.26,45.0]
[1720725694540,7.53699893,138.34,138.26,45.0]
[1720725694856,7.53699893,138.34,138.27,0.17]
[1720725699046,7.53699893,138.34,138.27,0.34]
[1720725700357,7.53699893,138.34,138.28,16.1388]
[1720725700659,7.53699893,138.34,138.29,45.0]
[1720725700660,14.09,138.33,138.29,45.0]
[1720725702658,14.09,138.32,138.29,45.0]
[1720725703360,14.09,138.32,138.25,6.4184]
[1720725703567,14.09,138.31,138.26,59.26]
[1720725704059,14.09,138.32,138.26,59.26]
[1720725705265,14.09,138.31,138.26,59.26]
[1720725705759,23.45179893,138.34,138.25,16.233]
[1720725705965,14.09,138.29,138.25,16.233]
[1720725706158,14.09,138.27,138.23,6.4815]
[1720725706557,14.09,138.28,138.23,20.5715]
[1720725707850,34.02927408,138.33,138.23,6.4815]
[1720725708053,14.09,138.3,138.25,14.09]
[1720725708452,14.09,138.29,138.24,59.09]
[1720725709954,14.09,138.3,138.25,14.09]
[1720725710344,14.09,138.29,138.24,59.09]
[1720725711263,14.09,138.29,138.24,45.0]
[1720725713168,14.09,138.29,138.24,59.09]
[1720725715074,14.09,138.3,138.25,14.09]
[1720725716151,7.54027408,138.33,138.25,16.6278]
[1720725716356,21.63027408,138.33,138.28,14.09]
[1720725716666,14.09,138.32,138.27,14.09]
[1720725716971,14.09,138.32,138.28,45.0]
[1720725717172,21.63027408,138.33,138.28,45.0]
[1720725717553,20.0,138.32,138.28,45.0]
[1720725718069,21.63027408,138.33,138.28,45.0]
[1720725718285,21.63027408,138.33,138.28,59.09]
[1720725718460,14.09,138.32,138.28,45.0]
[1720725719874,21.63027408,138.33,138.28,59.09]
[1720725720062,7.54027408,138.33,138.28,45.0]
[1720725720266,7.54027408,138.33,138.29,14.09]
[1720725720463,7.54027408,138.33,138.28,51.2493]
[1720725720668,21.63027408,138.33,138.28,51.2493]
[1720725720867,14.09,138.3,138.25,16.6278]
[1720725721081,14.09,138.32,138.25,16.6278]
[1720725721254,14.09,138.32,138.16,260.5664397]
[1720725721255,14.09,138.27,138.22,14.09]
[1720725721461,14.09,138.27,138.2,6.2493]
[1720725721462,16.0767,138.31,138.2,6.2493]
[1720725721762,14.09,138.25,138.2,6.2493]
[1720725721961,14.09,138.24,138.2,6.2493]
[1720725722678,28.22,138.28,138.17,6.2493]
[1720725722862,28.22,138.25,138.17,6.2493]
[1720725723077,20.17,138.24,138.17,6.2493]
[1720725724487,20.0,138.24,138.17,6.2493]
[1720725724860,20.0,138.27,138.17,6.2493]
[1720725725474,0.17,138.28,138.18,0.17]
[1720725725669,0.17,138.28,138.18,45.17]
[1720725726464,0.34,138.28,138.18,45.17]
[1720725726663,0.17,138.28,138.18,45.17]
[1720725727579,20.0,138.29,138.19,0.17]
[1720725728874,20.0,138.29,138.18,45.17]
[1720725729078,0.17,138.28,138.18,45.17]
[1720725729489,0.34,138.28,138.18,45.17]
[1720725731187,0.17,138.28,138.18,45.17]
[1720725731983,7.53981035,138.27,138.18,45.17]
[1720725732176,20.0,138.26,138.18,45.17]
[1720725732375,20.0,138.26,138.18,45.0]
[1720725732573,7.53981035,138.27,138.17,6.2493]
[1720725732881,20.34,138.26,138.17,6.2493]
[1720725734072,20.34,138.26,138.18,45.0]
[1720725734690,20.17,138.26,138.18,45.0]
[1720725738966,43.7622,138.25,138.16,0.2664397]
[1720725739171,20.17,138.24,138.16,0.2664397]
[1720725739975,0.17,138.23,138.16,0.2664397]
[1720725740174,20.17,138.24,138.16,0.2664397]
[1720725740379,0.17,138.23,138.16,0.2664397]
[1720725740581,20.17,138.24,138.16,0.2664397]
[1720725740976,43.5922,138.25,138.16,0.2664397]
[1720725741182,15.3722,138.25,138.16,0.2664397]
[1720725741678,15.3722,138.25,138.17,0.17]
[1720725742277,22.91340856,138.25,138.17,0.17]
[1720725742482,20.0,138.24,138.17,0.17]
[1720725743391,20.0,138.24,138.16,0.2664397]
[1720725744196,20.0,138.24,138.17,0.17]
[1720725746091,20.0,138.24,138.16,0.2664397]
[1720725746488,0.17,138.23,138.16,0.2664397]
[1720725746898,20.0,138.24,138.16,0.2664397]
[1720725750283,0.34,138.23,138.16,0.2664397]
[1720725752609,7.5429557,138.22,138.16,0.2664397]
[1720725752805,20.0,138.21,138.16,0.2664397]
[1720725756610,20.0,138.21,138.17,14.12]
[1720725756796,7.5429557,138.22,138.16,0.2664397]
[1720725757005,21.6629557,138.22,138.17,14.12]
[1720725759018,7.5429557,138.22,138.16,14.3864397]
[1720725759310,21.6629557,138.22,138.16,14.3864397]
[1720725759811,7.5429557,138.22,138.16,14.3864397]
[1720725760016,7.5429557,138.22,138.17,14.12]
[1720725760209,21.6629557,138.22,138.17,14.12]
[1720725760711,7.5429557,138.22,138.17,14.12]
[1720725760909,7.5429557,138.22,138.18,14.12]
[1720725764113,7.5429557,138.22,138.19,14.12]
[1720725766725,7.5429557,138.22,138.2,14.12]
[1720725771005,2.91008997,138.24,138.2,14.12]
[1720725771323,20.0,138.24,138.2,14.12]
[1720725771519,20.0,138.24,138.21,14.12]
[1720725772306,22.94542882,138.25,138.21,14.12]
[1720725772507,20.0,138.25,138.21,14.12]
[1720725773525,20.0,138.25,138.22,14.12]
[1720725774221,10.49128181,138.26,138.22,14.12]
[1720725776723,10.49128181,138.26,138.16,16.9299397]
[1720725776927,10.49128181,138.26,138.22,14.12]
[1720725777114,36.3573,138.24,138.18,14.12]
[1720725777315,20.17,138.23,138.17,14.12]
[1720725777626,34.29,138.23,138.16,0.2664397]
[1720725777811,20.0,138.23,138.19,14.12]
[1720725778747,0.17,138.22,138.17,14.12]
[1720725778930,0.17,138.22,138.16,0.2664397]
[1720725779129,14.12,138.21,138.16,0.2664397]
[1720725779313,14.12,138.21,138.16,14.3864397]
[1720725779627,0.17,138.22,138.17,14.12]
[1720725780510,20.0,138.23,138.18,14.12]
[1720725780716,20.0,138.23,138.19,14.12]
[1720725781520,22.2373,138.24,138.19,14.12]
[1720725781719,20.0,138.23,138.19,14.12]
[1720725782221,29.77800992,138.24,138.19,14.12]
[1720725782420,7.54070992,138.24,138.22,14.12]
[1720725783622,7.54070992,138.24,138.23,14.12]
[1720725783821,6.2021,138.27,138.23,14.12]
[1720725784618,6.2021,138.27,138.18,28.21]
[1720725784823,20.0,138.26,138.19,45.17]
[1720725786242,20.0,138.26,138.19,45.0]
[1720725786426,20.0,138.26,138.18,45.0]
[1720725786736,20.0,138.26,138.16,0.2664397]
[1720725786939,0.34,138.25,138.16,0.2664397]
[1720725788039,0.34,138.25,138.16,45.2664397]
[1720725792638,7.2362,138.2,138.16,45.2664397]
[1720725792943,18.085,138.24,138.16,45.2664397]
[1720725793123,20.0,138.23,138.16,45.2664397]
[1720725793323,7.2354,138.21,138.16,45.2664397]
[1720725793832,7.2349,138.22,138.16,45.2664397]
[1720725794627,7.2354,138.21,138.16,45.2664397]
[1720725795031,7.2359,138.2,138.16,45.2664397]
[1720725799650,18.085,138.24,138.16,45.2664397]
[1720725799846,20.0,138.23,138.16,45.2664397]
[1720725800642,7.2351,138.22,138.16,45.2664397]
[1720725800946,7.2354,138.21,138.16,45.2664397]
[1720725802250,7.2359,138.2,138.16,45.2664397]
[1720725802756,7.236,138.2,138.16,45.2664397]
[1720725803053,7.2365,138.19,138.16,45.2664397]
[1720725804663,7.2365,138.19,138.16,59.3864397]
[1720725804868,7.236,138.2,138.16,59.3864397]
[1720725806873,7.236,138.2,138.16,14.3864397]
[1720725807039,7.236,138.2,138.16,0.2664397]
[1720725807641,7.236,138.2,138.16,14.3864397]
[1720725807978,21.356,138.2,138.16,0.2664397]
[1720725808635,7.236,138.2,138.16,0.2664397]
[1720725808864,7.2365,138.19,138.16,0.2664397]
[1720725809563,21.3561,138.2,138.16,0.2664397]
[1720725810146,7.2361,138.2,138.16,0.2664397]
[1720725810669,7.54449265,138.22,138.18,14.12]
[1720725811042,27.2347,138.23,138.18,14.12]
[1720725811243,27.2347,138.23,138.16,60.9304397]
[1720725811443,7.2351,138.22,138.16,60.9304397]
[1720725811641,7.2351,138.22,138.18,14.12]
[1720725812054,7.2351,138.22,138.19,14.12]
[1720725812568,7.2359,138.2,138.16,0.2664397]
[1720725812774,7.2359,138.2,138.16,14.3864397]
[1720725812948,21.3555,138.21,138.16,14.3864397]
[1720725813146,7.2355,138.21,138.17,14.12]
[1720725813346,7.2355,138.21,138.16,0.2664397]
[1720725813553,7.2355,138.21,138.17,14.12]
[1720725814247,7.2355,138.21,138.16,0.2664397]
[1720725814449,7.237,138.18,138.16,0.2664397]
[1720725814650,21.3574,138.17,138.16,0.2664397]
[1720725814850,7.2368,138.19,138.16,0.2664397]
[1720725815043,21.3568,138.19,138.16,0.2664397]
[1720725815246,7.2368,138.19,138.16,0.2664397]
[1720725815570,7.2369,138.18,138.16,0.2664397]
[1720725815751,7.4074,138.17,138.16,0.2664397]
[1720725815961,7.2391,138.14,138.09,15.70690989]
[1720725816301,7.2395,138.13,138.09,0.04290989]
[1720725816561,7.2391,138.14,138.1,14.12]
[1720725816782,7.2381,138.16,138.11,14.12]
[1720725817076,7.2376,138.17,138.13,14.12]
[1720725817741,7.2383,138.16,138.12,14.12]
[1720725818148,14.12,138.17,138.12,14.12]
[1720725818356,21.358,138.16,138.09,0.04290989]
[1720725818559,21.358,138.16,138.11,14.12]
[1720725820250,7.238,138.16,138.11,14.12]
[1720725820458,21.358,138.16,138.11,14.12]
[1720725820661,14.12,138.16,138.11,14.12]
[1720725820866,14.12,138.16,138.09,0.04290989]
[1720725821061,21.3576,138.17,138.12,14.12]
[1720725822056,7.408,138.16,138.11,14.12]
[1720725822266,21.528,138.16,138.09,45.04290989]
[1720725822452,14.12,138.14,138.09,0.04290989]
[1720725822654,21.3593,138.14,138.09,0.04290989]
[1720725822967,21.3592,138.14,138.09,0.04290989]
[1720725823163,7.2395,138.13,138.09,0.04290989]
[1720725823370,21.3595,138.13,138.09,0.04290989]
[1720725823553,14.12,138.1,138.09,0.04290989]
[1720725823742,21.5311,138.1,138.09,0.04290989]
[1720725823943,7.2442,138.04,138.03,0.8137333]
[1720725824245,21.3637,138.05,137.99,14.12]
[1720725824450,7.2437,138.05,137.99,14.12]
[1720725824679,7.2438,138.05,137.96,16.5238]
[1720725825266,7.2438,138.05,137.91,6.6303]
[1720725825267,43.8918,138.03,137.91,6.6303]
[1720725825474,0.17,138.02,137.91,28.3]
[1720725825653,20.17,138.02,137.92,16.5238]
[1720725825966,21.8227,138.03,137.92,38.2638]
[1720725826165,20.0,138.02,137.92,38.2638]
[1720725826379,9.14356251,138.06,137.94,28.3]
[1720725826549,20.34,138.05,137.94,28.3]
[1720725827253,20.34,138.05,137.97,7.2475]
[1720725827665,7.245,138.03,137.92,16.5238]
[1720725827859,20.17,138.02,137.92,44.8238]
[1720725828061,27.584,138.05,137.92,44.8238]
[1720725828370,7.2453,138.02,137.92,44.8238]
[1720725828574,20.34,138.05,137.92,16.5238]
[1720725828575,7.5858,138.01,137.92,16.5238]
[1720725828867,0.17,138.01,137.95,7.2484]
[1720725829076,0.34,138.02,137.95,7.2484]
[1720725829391,0.34,138.02,137.92,16.5238]
[1720725829669,7.2464,138.0,137.94,7.2493]
[1720725829970,7.5857,138.02,137.96,7.2484]
[1720725830150,20.0,138.01,137.97,7.2478]
[1720725830344,20.0,138.01,137.92,16.5238]
[1720725830756,7.246,138.01,137.95,7.2487]
[1720725830952,20.0,138.0,137.92,16.5238]
[1720725831367,20.0,138.0,137.92,44.8238]
[1720725831566,7.2454,138.02,137.97,7.2477]
[1720725831757,20.0,138.01,137.98,7.2473]
[1720725831961,27.2449,138.03,137.96,7.248]
[1720725832173,7.53269096,138.02,137.97,7.2479]
[1720725832467,20.0,138.01,137.97,7.2479]
[1720725832854,7.53269096,138.02,137.98,7.2473]
[1720725833254,7.53269096,138.02,137.95,28.3]
[1720725833477,7.2438,138.05,138.0,7.2462]
[1720725833659,14.77363019,138.06,138.0,7.2462]
[1720725835078,7.53043019,138.06,137.96,45.17]
[1720725835259,7.2444,138.04,137.96,0.17]
[1720725835580,7.53043019,138.06,137.96,0.17]
[1720725835877,14.77373019,138.06,137.96,0.17]
[1720725836086,7.53043019,138.06,137.96,0.17]
[1720725836258,7.53043019,138.06,137.98,28.3]
[1720725836457,44.87288705,138.1,137.99,45.17]
[1720725836757,7.2425,138.08,137.99,45.17]
[1720725837261,7.2425,138.08,137.99,46.61703683]
[1720725837962,7.2425,138.08,137.99,45.17]
[1720725838164,32.28181154,138.1,137.99,28.3]
[1720725838482,7.2425,138.08,138.0,45.0]
[1720725839180,7.243,138.07,138.0,45.0]
[1720725839567,7.2422,138.08,138.0,45.0]
[1720725840259,7.2422,138.08,138.0,51.0226]
[1720725840465,32.28181154,138.1,138.0,51.0226]
[1720725840661,33.23161154,138.1,138.0,51.0226]
[1720725840866,7.2416,138.09,138.0,51.0226]
[1720725841164,7.52873551,138.1,138.0,6.0226]
[1720725841377,18.1058,138.08,138.0,6.0226]
[1720725841577,20.0,138.07,138.0,13.2688]
[1720725841880,20.0,138.07,138.0,6.0226]
[1720725842083,20.0,138.09,138.01,7.2458]
[1720725842581,7.2432,138.07,138.02,7.2449]
[1720725842774,7.2432,138.06,138.01,7.2456]
[1720725842977,20.0,138.09,138.01,7.2456]
[1720725843170,7.2449,138.03,138.0,6.0226]
[1720725843370,18.1056,138.08,138.0,6.0226]
[1720725843577,7.2435,138.06,138.01,7.2458]
[1720725843973,20.0,138.07,138.0,6.0226]
[1720725844178,7.2446,138.04,138.0,6.0226]
[1720725844680,7.2439,138.05,138.0,6.0226]
[1720725844864,7.2439,138.05,138.0,13.2687]
[1720725845358,20.0,138.07,138.0,6.0226]
[1720725845774,7.2433,138.06,138.0,13.2687]
[1720725846079,20.0,138.07,137.98,7.2469]
[1720725846295,18.2788,138.06,137.97,15.0073]
[1720725846480,7.2468,138.0,137.96,6.5751]
[1720725846683,7.2458,138.01,137.96,6.5751]
[1720725846858,7.2454,138.02,137.97,7.2478]
[1720725847063,7.2449,138.03,137.98,7.2471]
[1720725847257,7.2454,138.02,137.97,7.2479]
[1720725847459,7.53177188,138.04,137.96,6.5751]
[1720725847663,0.34,138.03,137.96,6.5751]
[1720725847875,7.2469,137.99,137.93,23.5211]
[1720725848282,7.2476,137.98,137.93,16.2712]
[1720725849070,7.2476,137.98,137.93,23.5211]
[1720725849686,7.2475,137.98,137.93,16.2712]
[1720725850185,7.2475,137.98,137.93,23.521]
[1720725850862,7.2475,137.98,137.93,16.2712]
[1720725851064,7.2475,137.98,137.93,23.5211]
[1720725851473,7.247,137.99,137.94,7.2495]
[1720725851672,7.2472,137.99,137.94,7.2494]
[1720725852483,7.2464,138.0,137.95,7.2488]
[1720725852872,7.2469,137.99,137.94,7.2494]
[1720725853662,7.2469,137.99,137.95,7.2489]
[1720725853867,7.53177188,138.04,137.97,7.2478]
[1720725854287,7.2457,138.02,137.97,7.2478]
[1720725855573,7.2458,138.01,137.97,7.2478]
[1720725855778,7.2458,138.01,137.96,7.2483]
[1720725856867,7.2464,138.0,137.96,7.2483]
[1720725857379,7.246,138.01,137.97,7.2478]
[1720725857768,7.2455,138.02,137.97,7.2478]
[1720725857980,7.2459,138.01,137.97,7.2478]
[1720725858282,7.2459,138.01,137.96,7.2483]
[1720725858484,7.2459,138.01,137.97,45.0]
[1720725859892,7.53177188,138.04,137.97,45.0]
[1720725860092,7.2448,138.03,137.98,7.2472]
[1720725860392,7.53177188,138.04,137.98,21.2044]
[1720725860579,7.2438,138.05,137.99,45.0]
[1720725860786,7.2438,138.05,138.0,7.2461]
[1720725861266,7.2438,138.05,138.01,7.2458]
[1720725861593,7.53056653,138.07,138.01,7.2458]
[1720725861967,7.53056653,138.07,137.99,45.0]
[1720725862167,7.53056653,138.07,138.01,7.2454]
[1720725863094,7.53056653,138.07,138.0,7.2462]
[1720725863299,7.53056653,138.07,138.01,45.0]
[1720725863969,7.53056653,138.07,137.98,21.2044]
[1720725864374,0.17,138.06,137.98,15.0497]
[1720725864577,15.8175,138.05,137.95,22.2986]
[1720725864778,20.34,138.04,137.95,15.0497]
[1720725865076,6.6257,138.03,137.94,6.1547]
[1720725865277,20.34,138.02,137.94,6.1547]
[1720725867282,20.34,138.02,137.93,7.2498]
[1720725867487,20.34,138.02,137.94,7.2494]
[1720725868693,20.34,138.02,137.93,7.2498]
[1720725868886,20.34,138.02,137.94,7.2495]
[1720725870708,20.34,138.02,137.93,7.2498]
[1720725871274,7.53076543,138.01,137.93,7.2498]
[1720725871482,15.2746,137.99,137.92,7.2503]
[1720725872604,20.0,137.98,137.92,7.2503]
[1720725874313,20.0,137.98,137.9,7.2514]
[1720725874499,20.0,137.98,137.89,8.0656333]
[1720725874697,20.0,137.98,137.89,8.0658333]
[1720725875003,20.0,137.98,137.9,7.2514]
[1720725875401,20.0,137.98,137.91,7.251]
[1720725875612,20.0,137.98,137.92,7.2505]
[1720725876291,7.53076543,138.01,137.9,28.3]
[1720725876487,7.53076543,138.01,137.93,7.25]
[1720725876894,7.53076543,138.01,137.94,7.2493]
[1720725877821,7.53076543,138.01,137.91,45.0]
[1720725877991,7.53076543,138.01,137.89,7.5228333]
[1720725877992,7.53076543,138.01,137.9,45.0]
[1720725878197,7.53076543,138.01,137.91,7.2507]
[1720725878414,7.53076543,138.01,137.92,45.0]
[1720725878715,20.0,138.0,137.92,52.2505]
[1720725880197,20.0,138.0,137.92,45.0]
[1720725880589,20.0,138.0,137.92,52.2505]
[1720725881291,20.0,138.0,137.92,45.0]
[1720725881493,7.53309121,137.99,137.92,52.2504]
[1720725881909,7.53309121,137.99,137.92,45.0]
[1720725882108,7.53309121,137.99,137.89,7.5228333]
[1720725882293,20.34,137.98,137.89,7.3528333]
[1720725882493,16.1149,137.97,137.89,0.8137333]
[1720725882706,20.17,137.96,137.89,0.8137333]
[1720725883803,20.0,137.96,137.89,0.8137333]
[1720725884112,20.0,137.96,137.89,8.0657333]
[1720725884415,20.0,137.96,137.89,0.8137333]
[1720725885603,20.0,137.96,137.89,45.8137333]
[1720725886189,16.1149,137.97,137.89,45.8137333]
[1720725886395,6.3842,137.98,137.91,7.251]
[1720725886589,7.53309121,137.99,137.91,7.251]
[1720725887011,7.53309121,137.99,137.9,7.2514]
[1720725887217,7.53309121,137.99,137.91,45.0]
[1720725888123,20.0,137.98,137.91,45.0]
[1720725889193,20.0,137.98,137.91,52.2511]
[1720725889710,20.0,137.98,137.91,45.0]
[1720725890219,20.0,137.98,137.91,52.2508]
[1720725891310,7.53309121,137.99,137.92,21.8135]
[1720725891495,7.08644099,138.05,137.93,45.17]
[1720725891694,8.28095768,138.04,137.94,7.2493]
[1720725891906,15.81063468,138.03,137.95,45.0]
[1720725892219,8.28095768,138.02,137.93,52.2499]
[1720725892418,7.529677,138.03,137.94,7.2494]
[1720725892600,8.28025105,138.02,137.95,45.0]
[1720725892797,7.529677,138.03,137.92,29.0636]
[1720725893013,22.5994,138.01,137.92,29.0636]
[1720725893402,22.5994,138.01,137.93,7.2499]
[1720725895007,0.17,138.0,137.92,15.5929]
[1720725896824,0.17,138.0,137.89,35.4772333]
[1720725897022,0.17,138.0,137.92,7.2501]
[1720725897626,22.5994,138.01,137.93,52.2499]
[1720725898327,22.5994,138.01,137.93,7.2499]
[1720725898722,22.5994,138.01,137.94,7.2493]
[1720725898925,22.5994,138.01,137.89,35.4772333]
[1720725899129,22.5994,138.01,137.9,45.34]
[1720725899505,22.5994,138.01,137.93,7.2498]
[1720725899706,22.5994,138.01,137.94,45.0]
[1720725900433,22.5994,138.01,137.93,7.2498]
[1720725900732,25.51150299,138.01,137.93,7.2498]
[1720725901623,25.51150299,138.01,137.94,45.0]
[1720725901819,25.51150299,138.01,137.93,45.0]
[1720725902226,30.12886733,138.01,137.93,45.0]
[1720725902527,30.12886733,138.01,137.95,7.2488]
[1720725902732,30.12886733,138.01,137.94,7.2493]
[1720725902910,30.12886733,138.01,137.95,45.0]
[1720725903212,30.12886733,138.01,137.95,52.2489]
[1720725903841,23.86096733,138.01,137.96,7.2484]
[1720725904228,16.3315,138.01,137.96,7.2484]
[1720725905815,16.3315,138.01,137.97,45.0]
[1720725906110,13.8315,138.01,137.97,45.0]
[1720725906311,14.12769851,138.04,137.97,45.0]
[1720725906829,14.12769851,138.04,137.98,7.2472]
[1720725907323,14.12769851,138.04,137.99,7.2466]
[1720725907529,7.52829851,138.04,138.0,45.0]
[1720725908227,7.52829851,138.04,138.0,52.2463]
[1720725908431,7.52829851,138.04,138.01,7.2457]
[1720725908634,6.091,138.07,138.02,7.245]
[1720725908815,13.61766301,138.07,138.0,45.0]
[1720725909212,7.52666301,138.07,138.0,45.0]
[1720725909631,7.52666301,138.07,138.0,52.2462]
[1720725911528,20.0,138.06,137.97,7.2477]
[1720725911736,6.6503,138.05,137.96,7.2484]
[1720725912233,6.6503,138.05,137.97,7.2478]
[1720725912913,6.6503,138.05,137.98,7.2473]
[1720725913316,6.6503,138.05,137.97,7.2478]
[1720725913521,6.6503,138.05,137.98,45.0]
[1720725915035,6.6503,138.05,137.98,52.2473]
[1720725915231,6.6503,138.05,137.99,7.2468]
[1720725916318,6.6503,138.05,137.98,45.0]
[1720725916635,6.6503,138.05,137.99,7.2465]
[1720725916813,6.6503,138.05,138.0,45.0]
[1720725917434,20.0,138.06,138.0,45.0]
[1720725917831,7.52666301,138.07,138.0,45.0]
[1720725918025,20.0,138.06,138.0,45.0]
[1720725918337,7.52666301,138.07,138.0,52.2462]
[1720725918530,20.0,138.06,138.0,52.2462]
[1720725918733,7.52666301,138.07,138.01,7.2457]
[1720725918933,7.52666301,138.07,138.02,45.0]
[1720725919938,7.52666301,138.07,138.02,52.2452]
[1720725920117,7.52666301,138.07,138.03,7.2447]
[1720725920319,15.9685,138.08,138.04,45.0]
[1720725920519,15.9685,138.08,138.02,45.0]
[1720725920919,15.9685,138.08,138.02,52.2452]
[1720725921116,15.9685,138.08,138.02,45.0]
[1720725921317,15.9685,138.08,138.01,52.2457]
[1720725922042,15.9685,138.08,138.02,7.2451]
[1720725922229,15.9685,138.08,138.03,45.0]
[1720725922431,15.9685,138.08,138.03,52.2445]
[1720725922634,7.52559503,138.1,138.04,7.2441]
[1720725922837,7.52559503,138.1,138.05,45.0]
[1720725925726,16.6203,138.12,138.05,45.0]
[1720725925727,19.61185438,138.12,138.05,45.0]
[1720725926045,24.20102079,138.12,138.05,45.0]
[1720725926347,7.58072079,138.12,138.06,7.2429]
[1720725926550,7.58072079,138.12,138.07,45.0]